bitfinex/quotes_ETHUSD_20251128
["timestamp","ask_amount","ask_price","bid_price","bid_amount"]
[1764345927845,8.070566,3059.9,3059.7,3.41611194]
[1764345928166,7.665062,3059.8,3059.7,3.88261194]
[1764345928351,7.665062,3059.8,3059.7,3.41611194]
[1764345928658,0.405504,3060.2,3059.7,3.88121194]
[1764345928659,0.405504,3060.0,3059.7,3.88121194]
[1764345928862,0.405504,3059.8,3059.7,0.61293032]
[1764345929032,0.405504,3059.8,3059.7,0.14783032]
[1764345929033,8.070566,3059.8,3059.7,0.14783032]
[1764345930326,8.50004566,3059.8,3059.7,0.14783032]
[1764345930749,8.89556011,3059.8,3059.7,0.14783032]
[1764345930966,12.49382723,3059.8,3059.7,0.14783032]
[1764345931122,9.22563977,3059.8,3059.7,0.14783032]
[1764345932237,8.89556011,3059.8,3059.7,0.14783032]
[1764345932558,0.72559411,3060.4,3059.7,1.07943032]
[1764345932761,7.665062,3060.2,3059.8,0.212]
[1764345932937,0.0994,3060.1,3059.7,0.14783032]
[1764345933132,7.764462,3059.8,3059.7,0.14783032]
[1764345933325,8.169966,3059.8,3059.7,0.14783032]
[1764345933525,8.070566,3059.8,3059.7,0.14783032]
[1764345933957,8.50004566,3059.8,3059.7,0.14783032]
[1764345935059,11.76823312,3059.8,3059.7,0.14783032]
[1764345935266,12.49382723,3059.8,3059.7,0.14783032]
[1764345935434,9.22563977,3059.8,3059.7,0.14783032]
[1764345935629,12.49382723,3059.8,3059.7,0.14783032]
[1764345936045,9.22563977,3059.8,3059.7,0.14783032]
[1764345936357,12.49382723,3059.8,3059.7,0.14783032]
[1764345937272,12.39442723,3059.8,3059.7,0.14783032]
[1764345937433,9.22563977,3059.8,3059.7,0.14783032]
[1764345937629,12.49382723,3059.8,3059.7,0.14783032]
[1764345938147,16.51045623,3059.8,3059.7,0.14783032]
[1764345938900,0.0994,3060.1,3059.7,0.14783032]
[1764345939038,7.764462,3059.8,3059.7,0.35983032]
[1764345939590,8.169966,3059.8,3059.7,0.35983032]
[1764345940150,8.89556011,3059.8,3059.7,0.14783032]
[1764345940673,12.49382723,3059.8,3059.7,0.14783032]
[1764345940836,8.79616011,3059.8,3059.7,0.14783032]
[1764345941036,8.169966,3059.8,3059.7,0.14783032]
[1764345941236,11.43815346,3059.8,3059.7,0.14783032]
[1764345941436,12.49382723,3059.8,3059.7,0.14783032]
[1764345943258,12.78862787,3059.8,3059.7,0.14783032]
[1764345943578,1.13109811,3059.7,3059.6,0.001]
[1764345943741,12.82958835,3059.7,3059.6,0.001]
[1764345944068,12.78873468,3059.7,3059.6,0.001]
[1764345944270,0.504904,3059.4,3059.3,0.213]
[1764345944440,8.40622432,3059.4,3059.3,0.213]
[1764345944645,7.95986264,3059.4,3059.3,4.4706216]
[1764345944843,7.665062,3060.0,3059.3,8.53222866]
[1764345945162,7.665062,3059.8,3059.4,0.4991]
[1764345945468,7.665062,3059.6,3059.4,0.4991]
[1764345945680,0.0994,3060.5,3059.4,0.4991]
[1764345945842,7.665062,3060.2,3059.6,3.26840109]
[1764345946042,7.665062,3060.0,3059.6,6.53680218]
[1764345946352,3.26694459,3061.0,3059.6,6.53680218]
[1764345946353,7.665062,3059.8,3059.7,0.4991]
[1764345946575,7.96261466,3059.8,3059.7,0.4991]
[1764345946756,7.96261466,3059.8,3059.7,0.9889]
[1764345946959,7.96261466,3059.8,3059.7,1.74148105]
[1764345947484,7.96261466,3059.8,3059.7,0.9889]
[1764345947647,7.96261466,3059.8,3059.7,1.2009]
[1764345948045,7.96261466,3059.8,3059.7,4.46919427]
[1764345949380,7.96345796,3059.8,3059.7,4.46919427]
[1764345949689,0.405504,3059.5,3059.3,0.001]
[1764345949851,8.50921964,3059.4,3059.3,0.001]
[1764345950052,8.46836196,3059.4,3059.3,0.213]
[1764345951268,8.36896196,3059.4,3059.3,0.7028]
[1764345951473,8.36896196,3059.4,3059.3,1.2019]
[1764345952045,8.36816196,3059.4,3059.3,1.2019]
[1764345952252,7.96265796,3059.4,3059.3,4.4706216]
[1764345952547,0.002,3059.9,3059.3,11.80094965]
[1764345952752,7.666262,3059.9,3059.8,0.4898]
[1764345952960,7.664262,3059.4,3059.3,0.001]
[1764345953167,0.504904,3059.4,3059.3,0.213]
[1764345953376,8.169166,3059.4,3059.3,0.213]
[1764345954169,8.169166,3059.4,3059.3,0.01181926]
[1764345954960,11.43778076,3059.4,3059.3,0.01181926]
[1764345955171,8.169166,3059.4,3059.3,0.01181926]
[1764345955352,11.43778076,3059.4,3059.3,0.01181926]
[1764345955766,8.169166,3059.4,3059.3,0.01181926]
[1764345955960,11.43778076,3059.4,3059.3,0.01181926]
[1764345956571,0.405504,3059.1,3059.0,0.41769972]
[1764345956756,8.069766,3059.1,3059.0,0.91679972]
[1764345957081,8.069766,3059.1,3059.0,1.61859972]
[1764345957382,7.664262,3059.7,3059.0,4.88764189]
[1764345957581,7.664262,3059.5,3059.1,0.4014]
[1764345957782,7.664262,3059.2,3059.1,0.1894]
[1764345957984,8.069766,3059.2,3059.1,1.3903]
[1764345958554,8.069766,3059.2,3059.0,0.41469972]
[1764345958555,16.5015383,3059.1,3059.0,0.41469972]
[1764345958787,8.53934977,3059.0,3058.9,0.01634548]
[1764345959089,14.10233477,3059.0,3058.9,0.01634548]
[1764345959283,14.06665511,3059.0,3058.9,0.01634548]
[1764345959462,11.72757011,3059.0,3058.9,0.01634548]
[1764345959668,12.05764977,3059.0,3058.9,0.01634548]
[1764345959874,9.14436011,3059.0,3058.9,0.01634548]
[1764345960074,9.43876011,3059.0,3058.9,0.01634548]
[1764345960281,13.03788194,3059.0,3058.9,0.01634548]
[1764345960485,12.60840228,3059.0,3058.9,0.01634548]
[1764345960653,18.83139394,3059.0,3058.9,0.01634548]
[1764345960997,17.62049294,3059.0,3058.9,0.01634548]
[1764345961566,12.70780228,3059.0,3058.9,0.01634548]
[1764345962078,12.74348194,3059.0,3058.9,0.01634548]
[1764345962339,12.74348194,3059.0,3058.9,0.00337712]
[1764345962621,13.03788194,3059.0,3058.9,0.00337712]
[1764345963014,12.74348194,3059.0,3058.9,0.00337712]
[1764345963804,12.49388194,3059.0,3058.9,0.00337712]
[1764345964213,12.08837794,3059.0,3058.9,0.00337712]
[1764345964629,8.36922027,3059.0,3058.9,0.00337712]
[1764345964933,7.96371627,3059.0,3058.9,0.99227712]
[1764345965308,0.29945427,3059.0,3058.9,0.99227712]
[1764345965626,0.29945427,3059.0,3058.9,1.20427712]
[1764345966527,0.29945427,3059.0,3058.9,4.47342616]
[1764345966737,0.29945427,3059.0,3058.9,5.03569441]
[1764345966898,0.29945427,3059.0,3058.9,5.24769441]
[1764345967741,0.29945427,3059.0,3058.9,5.03569441]
[1764345967902,0.29945427,3059.0,3058.9,5.24769441]
[1764345969129,0.29945427,3059.0,3058.9,5.03569441]
[1764345969305,0.002,3059.9,3058.9,11.78599249]
[1764345969632,0.30018489,3059.8,3059.0,1.67769925]
[1764345969852,0.30018489,3059.7,3059.0,1.67769925]
[1764345970035,0.70568889,3059.6,3059.1,0.4014]
[1764345970341,0.405504,3059.4,3059.1,0.9005]
[1764345970547,0.30018489,3059.3,3059.1,0.9005]
[1764345970744,0.30018489,3059.2,3059.1,0.4014]
[1764345971041,0.30018489,3059.2,3059.1,0.1894]
[1764345971244,0.30018489,3059.2,3059.1,1.3874]
[1764345971449,0.30018489,3059.2,3059.1,4.6563353]
[1764345971746,0.30018489,3059.2,3059.1,1.3874]
[1764345971946,0.30018489,3059.2,3059.1,4.6563353]
[1764345972149,0.30018489,3059.2,3059.1,5.44931058]
[1764345972317,0.30018489,3059.2,3059.1,1.3874]
[1764345972517,0.30018489,3059.2,3059.1,4.6563353]
[1764345973734,0.30018489,3059.2,3059.1,0.8949]
[1764345973928,0.30018489,3059.2,3059.1,1.3874]
[1764345974459,0.30018489,3059.2,3059.1,1.1754]
[1764345974753,0.30018489,3059.2,3059.1,1.3874]
[1764345976159,0.002,3059.4,3059.1,7.9252706]
[1764345976324,0.0012,3059.4,3059.3,0.4799]
[1764345976524,0.30159376,3059.4,3059.3,0.4799]
[1764345976724,0.30159376,3059.4,3059.3,0.9793]
[1764345977122,0.30159376,3059.4,3059.3,1.1913]
[1764345977352,0.30159376,3059.4,3059.3,4.9715819]
[1764345977558,0.0012,3059.4,3059.3,4.9715819]
[1764345979157,0.0012,3059.4,3059.3,1.2034603]
[1764345979345,0.0012,3059.4,3059.3,1.1913]
[1764345979663,0.0012,3059.4,3059.3,0.9793]
[1764345979839,0.0012,3059.4,3059.3,1.1913]
[1764345980040,0.405504,3059.3,3058.9,0.00437712]
[1764345980238,0.30056171,3059.2,3058.9,0.00437712]
[1764345980433,0.30056171,3059.1,3059.0,0.212]
[1764345980638,0.30056171,3059.2,3059.0,0.212]
[1764345980951,0.504904,3059.3,3059.0,0.7114]
[1764345980952,0.30056171,3059.1,3059.0,0.7114]
[1764345981157,0.30056171,3059.2,3059.0,3.98044217]
[1764345981323,0.0012,3059.4,3059.2,0.6616]
[1764345981525,0.30065197,3059.3,3059.2,0.1817]
[1764345981969,0.30065197,3059.3,3059.2,1.373]
[1764345982266,0.30185197,3059.4,3059.2,0.6616]
[1764345982462,0.30185197,3059.4,3059.2,0.8736]
[1764345982765,3.57046768,3059.4,3059.2,0.6616]
[1764345983066,0.70624833,3059.3,3058.9,0.00437712]
[1764345983577,0.30074433,3059.2,3059.0,0.212]
[1764345983781,0.405504,3059.1,3058.9,0.00437712]
[1764345983924,0.70624833,3059.1,3058.9,0.00437712]
[1764345984131,0.30074433,3059.0,3058.9,0.00437712]
[1764345984429,0.504904,3059.2,3058.9,0.21637712]
[1764345984651,0.30074433,3059.1,3058.9,0.21637712]
[1764345984880,0.70624833,3059.0,3058.9,0.21637712]
[1764345985343,3.67454617,3059.0,3058.9,0.21637712]
[1764345985543,0.70624833,3059.0,3058.9,0.21637712]
[1764345985955,0.0012,3059.4,3058.9,4.46482313]
[1764345986243,0.30188716,3059.4,3058.9,0.00437712]
[1764345986442,0.34154618,3059.3,3059.0,0.211]
[1764345986644,0.2492,3059.0,3058.9,0.00437712]
[1764345986846,4.22443333,3059.0,3058.9,0.00437712]
[1764345987053,4.22443333,3059.0,3058.9,0.21537712]
[1764345987250,4.22443333,3059.0,3058.9,0.00437712]
[1764345987672,5.3795071,3059.0,3058.9,0.00437712]
[1764345987851,5.6743071,3059.0,3058.9,0.00437712]
[1764345988863,4.94871299,3059.0,3058.9,0.00437712]
[1764345989065,4.65391299,3059.0,3058.9,0.00437712]
[1764345989470,3.97523333,3059.0,3058.9,0.00437712]
[1764345989675,4.07463333,3059.0,3058.9,0.00437712]
[1764345990475,4.94871299,3059.0,3058.9,0.00437712]
[1764345991053,4.69477601,3059.0,3058.9,0.00437712]
[1764345991642,5.71517012,3059.0,3058.9,0.00437712]
[1764345991845,1.13109811,3058.9,3058.5,0.211]
[1764345992067,0.40008716,3058.8,3058.5,0.211]
[1764345992387,0.1492,3058.9,3058.1,3.45165143]
[1764345992585,0.405504,3058.7,3058.6,0.211]
[1764345992741,0.70636025,3058.7,3058.6,0.211]
[1764345992941,0.70636025,3058.7,3058.6,0.6409]
[1764345993249,0.30085625,3058.7,3058.6,0.6409]
[1764345993591,0.04085902,3059.3,3058.6,0.6409]
[1764345993778,0.70644105,3059.2,3058.9,0.4799]
[1764345994073,0.405504,3059.0,3058.9,0.4799]
[1764345994262,0.70644105,3059.0,3058.9,0.9793]
[1764345994451,0.30093705,3059.0,3058.9,0.9793]
[1764345994857,0.30093705,3059.0,3058.9,4.24844904]
[1764345995056,0.30093705,3059.0,3058.9,5.00022578]
[1764345995262,0.30100655,3059.3,3058.9,8.26937482]
[1764345995553,0.30100655,3059.2,3059.0,0.7104]
[1764345995781,0.30100655,3059.1,3059.0,0.7104]
[1764345995976,0.30100655,3059.1,3058.9,7.29007482]
[1764345996178,0.30097734,3059.3,3059.0,1.41990748]
[1764345996488,0.0012,3059.4,3059.3,0.6616]
[1764345996802,0.04083632,3061.0,3059.7,0.4799]
[1764345997100,0.30106542,3060.5,3060.2,0.6616]
[1764345997247,3.79785617,3061.3,3060.2,1.161]
[1764345997447,3.26687544,3061.1,3060.2,1.161]
[1764345997652,0.30079156,3060.5,3060.2,0.211]
[1764345997880,0.04083899,3060.8,3060.2,1.1903]
[1764345998088,0.30077954,3060.5,3060.2,1.1903]
[1764345998292,0.30061446,3060.5,3060.2,1.1903]
[1764345998769,0.30061446,3060.5,3060.2,0.6909]
[1764345999075,0.30061446,3060.5,3060.2,0.4799]
[1764345999076,3.26744297,3060.5,3060.2,0.4799]
[1764345999287,0.061,3060.3,3060.2,0.211]
[1764345999587,0.405504,3060.2,3059.6,0.4994]
[1764345999752,0.70598093,3060.2,3059.7,0.211]
[1764346000199,0.002,3060.3,3060.1,0.4799]
[1764346000373,0.002,3060.3,3060.2,0.6909]
[1764346000573,0.0012,3060.3,3060.2,0.6909]
[1764346000768,0.0012,3060.3,3060.2,1.159]
[1764346002270,0.0602,3060.3,3059.1,3.2689353]
[1764346002481,0.0602,3060.3,3059.6,0.4681]
[1764346002482,0.405504,3060.2,3059.6,0.4681]
[1764346002690,0.30145099,3060.3,3059.6,0.4681]
[1764346002980,0.0012,3060.3,3060.2,0.487]
[1764346003181,0.0012,3060.3,3060.2,0.211]
[1764346003402,0.0012,3060.3,3060.2,0.698]
[1764346003585,0.0012,3060.3,3059.8,0.4681]
[1764346003897,0.0012,3060.3,3059.8,0.6536]
[1764346004100,0.0012,3060.3,3059.9,0.211]
[1764346004499,0.0012,3060.3,3060.0,0.211]
[1764346004906,0.0012,3060.3,3060.2,0.487]
[1764346005415,0.0012,3060.3,3060.0,0.211]
[1764346005702,0.0012,3060.3,3060.2,0.487]
[1764346005904,0.0012,3060.3,3060.2,1.72530402]
[1764346006078,0.0012,3060.3,3060.2,1.93630402]
[1764346007205,0.0012,3060.3,3060.2,1.1661]
[1764346007510,0.0012,3060.3,3060.2,4.43386027]
[1764346007700,0.0012,3060.3,3060.2,1.1661]
[1764346007898,0.0012,3060.3,3060.2,0.698]
[1764346008579,0.0012,3060.3,3060.2,0.487]
[1764346008780,0.0012,3060.3,3060.2,0.211]
[1764346009105,0.0012,3060.3,3059.9,3.26808065]
[1764346009313,0.0012,3060.3,3060.2,0.211]
[1764346009687,0.405504,3060.2,3059.6,0.4681]
[1764346009877,0.70531595,3060.2,3059.5,0.1855]
[1764346010082,0.504904,3060.2,3059.5,0.1855]
[1764346010320,0.0994,3060.0,3059.6,0.211]
[1764346011480,0.405504,3060.2,3059.6,3.94746612]
[1764346011481,0.504904,3060.2,3059.6,3.94746612]
[1764346011682,0.504904,3060.2,3059.7,0.211]
[1764346012808,0.994404,3060.2,3059.8,0.211]
[1764346013478,3.67347785,3060.0,3059.8,0.211]
[1764346013677,0.405504,3059.8,3059.2,0.39979428]
[1764346013908,0.405504,3059.8,3059.3,0.211]
[1764346014307,0.405504,3059.8,3059.3,0.6791]
[1764346014913,0.405504,3059.8,3059.4,0.4681]
[1764346015105,0.405504,3059.8,3059.4,0.6791]
[1764346015710,0.405504,3059.8,3059.4,3.94768932]
[1764346015912,0.405504,3059.8,3059.5,0.4681]
[1764346016329,0.405504,3060.0,3059.7,0.487]
[1764346016519,0.405504,3060.0,3059.8,0.698]
[1764346016736,0.405504,3060.1,3059.8,0.698]
[1764346017206,0.405504,3060.1,3059.8,1.1661]
[1764346017404,0.405504,3060.1,3059.8,0.698]
[1764346017405,0.705336,3060.1,3059.8,0.698]
[1764346017640,3.67337106,3060.1,3060.0,0.487]
[1764346017932,3.26786706,3060.1,3059.8,0.211]
[1764346018502,0.405504,3060.1,3059.8,0.211]
[1764346018710,0.74624323,3060.1,3059.8,0.211]
[1764346019034,0.44635233,3060.1,3059.8,0.211]
[1764346019249,0.30002004,3060.0,3059.0,0.001]
[1764346019408,0.0994,3059.7,3059.1,0.211]
[1764346019608,3.26840109,3059.6,3059.1,0.211]
[1764346019809,3.36773577,3059.7,3059.1,3.47990969]
[1764346020334,3.36773577,3059.7,3059.0,0.4691]
[1764346020335,0.70563837,3059.6,3059.0,0.4691]
[1764346020536,0.70563837,3059.6,3059.0,0.001]
[1764346020724,0.504904,3059.4,3059.0,0.001]
[1764346020906,0.861604,3059.1,3059.0,0.001]
[1764346021239,1.59121803,3059.1,3059.0,0.001]
[1764346023842,0.30013437,3059.8,3059.2,0.74939706]
[1764346024011,0.30013437,3060.1,3059.3,0.6791]
[1764346024206,0.0012,3060.3,3059.3,0.6791]
[1764346024207,0.34098404,3060.0,3059.4,0.211]
[1764346024411,0.30013437,3059.9,3059.4,0.6791]
[1764346024658,0.34145623,3059.8,3059.5,0.211]
[1764346024806,0.05,3059.9,3059.2,1.21749706]
[1764346025012,0.504904,3059.7,3059.2,0.74939706]
[1764346025256,0.504904,3059.7,3059.1,0.1855]
[1764346025257,0.405504,3059.5,3059.3,0.211]
[1764346025547,0.405504,3059.5,3059.4,0.211]
[1764346025719,6.63598854,3059.7,3059.4,0.211]
[1764346026044,0.405504,3059.5,3059.4,0.211]
[1764346026912,0.405504,3059.5,3059.4,0.698]
[1764346027112,0.405504,3059.5,3059.4,1.1661]
[1764346027645,0.405504,3059.3,3059.2,0.211]
[1764346028012,0.405504,3059.4,3059.2,0.698]
[1764346028207,6.86659984,3060.3,3059.4,0.487]
[1764346028430,0.405504,3060.0,3059.4,0.9551]
[1764346028630,0.405504,3060.0,3059.5,0.211]
[1764346028834,0.405504,3060.1,3059.5,0.6791]
[1764346029231,0.405504,3060.1,3059.6,0.6791]
[1764346029867,0.405504,3060.1,3059.6,3.94744901]
[1764346030346,0.04084967,3060.0,3059.7,0.211]
[1764346030717,0.44635233,3060.1,3059.7,0.211]
[1764346031020,0.44635233,3060.1,3059.7,0.6826]
[1764346031226,0.405504,3060.1,3059.7,0.6826]
[1764346031536,0.405504,3060.1,3059.8,0.4716]
[1764346031736,0.405504,3060.2,3060.0,0.4841]
[1764346031922,0.406704,3060.3,3060.1,0.682]
[1764346032245,0.0012,3060.3,3060.2,0.6951]
[1764346032621,0.0012,3060.3,3060.2,0.211]
[1764346032945,0.870504,3060.3,3060.2,0.211]
[1764346033146,0.406704,3060.3,3060.2,0.211]
[1764346033527,0.0012,3060.3,3060.2,0.211]
[1764346034461,0.0012,3060.3,3059.4,3.861]
[1764346034462,0.405504,3060.2,3059.4,3.861]
[1764346034614,0.0994,3060.0,3059.4,7.88995401]
[1764346034818,0.504904,3060.2,3059.5,0.6848]
[1764346035034,0.0994,3060.2,3059.5,0.6848]
[1764346035234,0.0994,3060.2,3059.5,0.211]
[1764346035539,0.406704,3060.3,3059.6,0.4738]
[1764346036248,0.405504,3060.1,3059.6,3.74212513]
[1764346036548,0.04084833,3060.1,3059.6,3.74212513]
[1764346036750,0.30092932,3060.0,3059.7,0.4738]
[1764346036921,0.30092932,3059.9,3059.7,0.4738]
[1764346037122,0.04084833,3060.1,3059.7,0.4738]
[1764346037452,0.30101273,3060.0,3059.7,0.4738]
[1764346037756,0.30101273,3059.9,3059.7,0.4738]
[1764346038050,0.04084833,3060.1,3059.6,3.26832513]
[1764346038259,0.30106077,3060.0,3059.7,0.4738]
[1764346038552,0.30112222,3059.9,3059.6,3.26832513]
[1764346038758,0.30112222,3059.8,3059.6,4.01924196]
[1764346038946,0.44754966,3060.3,3059.6,4.01924196]
[1764346038947,0.0994,3060.1,3059.6,4.01924196]
[1764346039147,0.3011229,3060.0,3059.7,0.454]
[1764346039347,0.3011229,3059.9,3059.7,0.454]
[1764346039538,0.3011229,3059.8,3059.7,0.454]
[1764346039940,0.3011229,3059.8,3059.7,0.9278]
[1764346040257,0.3011229,3059.8,3059.7,4.19609427]
[1764346040625,0.3011229,3059.8,3059.4,0.001]
[1764346040626,0.3011229,3059.8,3059.4,0.4748]
[1764346040834,0.30112634,3059.7,3059.5,0.21]
[1764346041030,0.0592,3059.8,3059.5,0.21]
[1764346041340,0.30114682,3059.7,3059.6,0.21]
[1764346041846,0.30114682,3059.7,3059.6,1.1378]
[1764346042362,0.30114682,3059.7,3059.4,0.001]
[1764346042538,0.889504,3059.5,3059.4,0.001]
[1764346042738,0.889504,3059.5,3059.4,0.211]
[1764346042739,1.29016907,3059.5,3059.4,0.211]
[1764346043142,0.80616907,3059.5,3059.4,0.211]
[1764346043349,0.70676907,3059.5,3059.4,0.211]
[1764346043860,0.70676907,3059.5,3059.4,0.001]
[1764346044029,0.70676907,3059.5,3059.4,0.211]
[1764346044334,4.95405665,3059.5,3059.4,0.001]
[1764346045151,4.88455665,3059.5,3059.4,0.001]
[1764346045350,4.55447699,3059.5,3059.4,0.001]
[1764346046551,4.62397699,3059.5,3059.4,0.001]
[1764346047464,4.55447699,3059.5,3059.4,0.001]
[1764346049036,4.55367699,3059.5,3059.4,0.001]
[1764346049566,4.59453333,3059.5,3059.4,0.001]
[1764346050233,0.70596907,3059.5,3059.4,0.455]
[1764346050564,0.30126507,3059.5,3059.4,0.9288]
[1764346050787,0.30126507,3059.7,3059.4,7.46602952]
[1764346051075,0.002,3059.8,3059.5,1.56827452]
[1764346051236,0.002,3059.8,3059.7,0.454]
[1764346051670,0.002,3059.8,3059.7,0.9278]
[1764346052039,0.30279033,3059.8,3059.7,1.1378]
[1764346052839,0.30279033,3059.8,3059.7,4.40609427]
[1764346053164,0.30279033,3059.8,3059.7,4.8467037]
[1764346054139,0.30279033,3059.8,3059.7,1.57840943]
[1764346055367,0.30279033,3059.8,3059.7,4.8467037]
[1764346055666,0.30279033,3059.8,3059.7,1.57840943]
[1764346055866,0.30279033,3059.8,3059.7,1.1378]
[1764346057065,0.30279033,3059.8,3059.7,0.664]
[1764346057667,0.30339537,3059.8,3059.7,0.664]
[1764346059039,0.30339537,3059.8,3059.7,4.40609427]
[1764346061470,0.405504,3059.7,3059.4,0.001]
[1764346061672,0.405504,3059.5,3059.4,0.001]
[1764346061870,1.16529937,3059.5,3059.4,0.001]
[1764346062169,0.70689937,3059.5,3059.4,0.001]
[1764346063073,0.30139537,3059.5,3059.4,0.4605]
[1764346063240,0.30139537,3059.5,3059.4,0.211]
[1764346063443,0.30139537,3059.5,3059.4,0.001]
[1764346063718,0.30139537,3059.5,3059.4,0.211]
[1764346063842,0.30139537,3059.5,3059.4,0.6705]
[1764346064148,0.30139537,3059.5,3059.4,0.211]
[1764346064352,0.30139537,3059.5,3059.4,0.6705]
[1764346064548,4.62390729,3059.5,3059.4,0.001]
[1764346064754,4.53320729,3059.5,3059.4,0.211]
[1764346065474,1.26469937,3059.5,3059.4,0.211]
[1764346065665,4.43380729,3059.5,3059.4,0.211]
[1764346067373,4.43380729,3059.5,3059.4,0.001]
[1764346067580,4.52450729,3059.5,3059.4,0.001]
[1764346067758,4.43380729,3059.5,3059.4,0.001]
[1764346067959,4.52450729,3059.5,3059.4,0.001]
[1764346068158,4.95398695,3059.5,3059.4,0.001]
[1764346069886,4.43380729,3059.5,3059.4,0.001]
[1764346070961,3.97540729,3059.5,3059.4,0.001]
[1764346071156,0.74775571,3059.5,3059.4,0.001]
[1764346071382,3.97540729,3059.5,3059.4,0.001]
[1764346072185,0.70689937,3059.5,3059.4,0.4605]
[1764346072880,0.30139537,3059.5,3059.4,0.4605]
[1764346073179,0.30139537,3059.5,3059.4,0.211]
[1764346073348,0.30059537,3059.5,3059.4,0.6705]
[1764346073546,0.30059537,3059.5,3059.4,1.1672]
[1764346074183,0.30059537,3059.5,3059.4,4.43581476]
[1764346074398,0.002,3059.8,3059.4,8.14803171]
[1764346074688,0.002,3059.8,3059.7,0.4595]
[1764346075108,0.002,3059.8,3059.7,0.9562]
[1764346075818,0.002,3059.8,3059.7,4.22449427]
[1764346075972,0.002,3059.8,3059.7,4.97378381]
[1764346076892,0.002,3059.8,3059.7,1.20878954]
[1764346077095,0.002,3059.8,3059.7,0.6695]
[1764346077273,0.002,3059.8,3059.7,0.4595]
[1764346077475,0.002,3059.8,3059.7,0.6695]
[1764346078078,0.002,3059.8,3059.4,0.001]
[1764346078276,0.002,3059.8,3059.5,0.21]
[1764346078909,0.002,3059.8,3059.7,0.4595]
[1764346079112,0.002,3059.8,3059.7,0.9562]
[1764346080078,0.002,3059.8,3059.7,4.22449427]
[1764346080478,0.002,3059.8,3059.5,0.55796119]
[1764346080716,0.002,3059.8,3059.7,0.4595]
[1764346081087,0.002,3059.8,3059.7,1.1662]
[1764346081914,0.002,3059.8,3059.7,0.9562]
[1764346082115,0.002,3059.8,3059.7,4.43449427]
[1764346085529,0.002,3059.8,3059.7,8.29449427]
[1764346085734,0.002,3059.8,3059.7,9.4507835]
[1764346086584,0.002,3059.8,3059.7,15.94971259]
[1764346088004,0.002,3059.8,3059.7,9.2407835]
[1764346088203,0.002,3059.8,3059.7,5.5907835]
[1764346090542,0.002,3059.8,3059.4,0.001]
[1764346090750,0.002,3059.8,3059.5,0.6652]
[1764346091665,0.002,3059.8,3059.7,0.4636]
[1764346091944,0.002,3059.8,3059.7,0.9188]
[1764346092433,0.002,3059.8,3059.7,4.18709427]
[1764346093226,0.002,3059.8,3059.7,4.95364325]
[1764346094326,0.002,3059.8,3059.7,4.39709427]
[1764346094645,0.002,3059.8,3059.7,3.94189427]
[1764346095146,0.002,3059.8,3059.7,4.39609427]
[1764346095715,0.002,3059.8,3059.7,3.94189427]
[1764346096114,0.002,3059.8,3059.7,3.73189427]
[1764346096315,0.002,3059.8,3059.7,4.64192325]
[1764346096515,0.002,3059.8,3059.7,5.09612325]
[1764346097450,0.0012,3059.8,3059.7,5.09612325]
[1764346099150,0.0012,3059.8,3059.7,5.82171736]
[1764346099849,0.0012,3059.8,3059.7,6.14771736]
[1764346100147,0.0012,3059.8,3059.7,5.82171736]
[1764346101718,0.0012,3059.8,3059.7,6.14771736]
[1764346103343,0.0012,3059.8,3059.7,5.82171736]
[1764346105368,0.0012,3059.8,3059.7,4.64192325]
[1764346106049,0.0012,3059.8,3059.7,5.09612325]
[1764346106232,0.0012,3059.8,3059.7,4.88612325]
[1764346106434,0.0012,3059.8,3059.7,5.09612325]
[1764346108249,0.0012,3059.8,3059.7,4.88612325]
[1764346108566,0.0012,3059.8,3059.7,4.64192325]
[1764346109138,0.0012,3059.8,3059.7,5.09612325]
[1764346110667,0.0012,3059.8,3059.7,4.88612325]
[1764346110834,0.0012,3059.8,3059.7,5.09612325]
[1764346111240,0.0012,3059.8,3059.7,4.88612325]
[1764346111437,0.0012,3059.8,3059.7,5.09612325]
[1764346118283,0.0012,3059.8,3059.7,4.43192325]
[1764346118463,0.477,3059.8,3059.7,4.17832325]
[1764346118659,0.0012,3059.8,3059.7,3.96832325]
[1764346118987,0.0012,3059.8,3059.5,0.001]
[1764346118988,0.85145284,3059.8,3059.5,0.001]
[1764346119185,0.873404,3059.6,3059.5,0.001]
[1764346119351,1.17445684,3059.6,3059.5,0.001]
[1764346119551,1.25575684,3059.6,3059.5,0.001]
[1764346119784,4.52415793,3059.6,3059.5,0.001]
[1764346120163,1.25575684,3059.6,3059.5,0.001]
[1764346120363,4.52415793,3059.6,3059.5,0.001]
[1764346120769,1.25575684,3059.6,3059.5,0.001]
[1764346121173,0.76895284,3059.6,3059.5,0.001]
[1764346121385,0.85025284,3059.6,3059.5,0.001]
[1764346121783,0.84945284,3059.6,3059.5,0.001]
[1764346122383,0.76815284,3059.6,3059.5,0.001]
[1764346124086,0.0012,3059.8,3059.5,1.64612103]
[1764346124288,0.0012,3059.8,3059.7,0.4907]
[1764346124657,0.0012,3059.8,3059.7,0.9701]
[1764346126207,0.0012,3059.8,3059.7,4.23839427]
[1764346126496,0.0012,3059.8,3059.7,5.12923487]
[1764346126681,0.0894,3059.8,3059.7,0.8908406]
[1764346127003,0.89564874,3059.8,3059.7,0.21]
[1764346128492,0.405504,3059.7,3059.5,0.001]
[1764346128713,0.0046,3059.6,3059.5,0.001]
[1764346128912,0.71058479,3059.6,3059.5,0.001]
[1764346130672,0.70598479,3059.6,3059.5,0.001]
[1764346130879,1.25068479,3059.6,3059.5,0.001]
[1764346131080,0.79418479,3059.6,3059.5,0.001]
[1764346131494,0.79418479,3059.6,3059.5,0.211]
[1764346131880,0.30048079,3059.6,3059.5,0.211]
[1764346132083,0.30051473,3059.6,3059.5,0.211]
[1764346132276,0.406704,3059.8,3059.5,0.211]
[1764346132484,0.30058254,3059.7,3059.6,3.26840109]
[1764346132889,0.30059395,3059.7,3059.6,4.91339154]